[Event "Fagernes GM-A 2019"]
[Site "Fagernes"]
[Date "2019.04.16"]
[Round "3.12"]
[White "Ingebretsen, Jens E"]
[Black "Abdrlauf, Elham"]
[Result "0-1"]
[ECO "A40"]
[WhiteElo "2300"]
[BlackElo "2123"]
[Annotator "ChessBase"]
[PlyCount "72"]
[EventDate "2019.04.14"]
[EventType "tourn"]
[EventCountry "NOR"]
[SourceTitle "playchess.com"]
[Source "ChessBase"]
[SourceQuality "1"]
[TimeControl "40/7200:3600"]

1. c4 {[%emt 0:02:28]} b6 {[%emt 0:00:05]} 2. d4 {[%emt 0:00:43]} e6 {[%emt 0:00:40]} 3. Nc3 {[%emt 0:00:23]} Bb7 {[%emt 0:00:29]} 4. d5 {[%emt 0:00:20]} exd5 {[%emt 0:06:36]} 5. cxd5 {[%emt 0:00:45]} Nf6 {[%emt 0:00:20]} 6. e4 {[%emt 0:03:21]} Bc5 {[%emt 0:01:01]} 7. Bd3 {[%emt 0:02:40]} O-O {[%emt 0:01:31]} 8. Nf3 {[%emt 0:01:28]} d6 {[%emt 0:05:56]} 9. Bg5 {[%emt 0:02:26]} h6 {[%emt 0:05:23]} 10. Bh4 {[%emt 0:00:36]} Re8 {[%emt 0:04:11]} 11. O-O {[%emt 0:01:42]} c6 {[%emt 0:04:07]} 12. Qd2 {[%emt 0:08:31]} Bb4 {[%emt 0:08:08]} 13. Rfe1 {[%emt 0:11:32]} Nbd7 {[%emt 0:02:47]} 14. Qf4 {[%emt 0:08:18]} Ne5 {[%emt 0:05:31]} 15. Nxe5 {[%emt 0:04:04]} dxe5 {[%emt 0:00:13]} 16. Qf5 {[%emt 0:02:51]} g5 {[%emt 0:07:43]} 17. Bg3 {[%emt 0:04:53]} Bc8 {[%emt 0:00:12]} 18. Qf3 {[%emt 0:00:24]} Bg4 {[%emt 0:00:38]} 19. Qe3 {[%emt 0:00:12]} Qd6 {[%emt 0:06:23]} 20. h4 {[%emt 0:04:21]} Nh5 {[%emt 0:00:00]} 21. Bc4 {[%emt 0:00:00]} Bc5 {[%emt 0:00:00]} 22. Qd3 {[%emt 0:00:00]} b5 {[%emt 0:00:00]} 23. Bb3 {[%emt 0:00:00]} Rad8 {[%emt 0:00:00]} 24. Bd1 {[%emt 0:00:00]} Bxd1 {[%emt 0:00:00]} 25. Raxd1 {[%emt 0:00:00]} Qf6 {[%emt 0:00:00]} 26. hxg5 {[%emt 0:00:00]} hxg5 {[%emt 0:00:00]} 27. Rc1 {[%emt 0:00:00]} Bb6 {[%emt 0:00:00]} 28. a3 {[%emt 0:00:00]} Kg7 {[%emt 0:00:00]} 29. Kf1 {[%emt 0:00:00]} Rh8 {[%emt 0:12:47]} 30. Qf3 {[%emt 0:18:55]} Qxf3 {[%emt 0:00:00]} 31. gxf3 {[%emt 0:00:00]} Nxg3+ {[%emt 0:00:00]} 32. fxg3 {[%emt 0:00:00]} Rh2 {[%emt 0:00:43]} 33. Nd1 {[%emt 0:04:39]} cxd5 {[%emt 0:00:00]} 34. f4 {[%emt 0:00:00]} dxe4 {[%emt 0:02:04]} 35. Rxe4 {[%emt 0:09:39]} Rdd2 {[%emt 0:00:19]} 36. Ke1 {[%emt 0:00:45]} Rdg2 {[%emt 0:00:32]} 0-1

[Event "Fagernes GM-A 2019"]
[Site "Fagernes"]
[Date "2019.04.16"]
[Round "3.13"]
[White "Skotheim, Andreas"]
[Black "Hobber, Anders"]
[Result "0-1"]
[ECO "E57"]
[WhiteElo "2182"]
[BlackElo "2295"]
[Annotator "NA"]
[PlyCount "118"]
[EventDate "2019.04.14"]
[EventType "tourn"]
[EventCountry "NOR"]
[SourceTitle "playchess.com"]
[Source "ChessBase"]
[SourceQuality "1"]
[TimeControl "40/7200:3600"]

1. c4 {[%emt 0:00:11]} c6 {[%emt 0:00:13]} 2. e4 {[%emt 0:00:55]} d5 {[%emt 0:02:30]} 3. exd5 {[%emt 0:00:20]} Nf6 {[%emt 0:01:46]} 4. d4 {[%emt 0:00:39]} cxd5 {[%emt 0:00:35]} 5. Nc3 {[%emt 0:00:27]} Nc6 {[%emt 0:02:55]} 6. Bg5 {[%emt 0:01:15]} e6 {[%emt 0:04:53]} 7. Nf3 {[%emt 0:02:15]} Be7 {[%emt 0:01:52]} 8. a3 {[%emt 0:11:24]} dxc4 {[%emt 0:07:34]} 9. Bxc4 {[%emt 0:00:44]} O-O {[%emt 0:00:06]} 10. O-O {[%emt 0:00:52]} b6 {[%emt 0:04:05]} 11. Qd3 {[%emt 0:08:56]} Bb7 {[%emt 0:01:41]} 12. Rfe1 {[%emt 0:01:58]} Rc8 {[%emt 0:08:02] E57: Nimzo-Indian: Rubinstein: Main Line: 7...Nc6 8 a3 dxc4 9 Bxc4 cxd4} (12... h6 13. Bxf6 Bxf6 14. Rad1 Ne7 15. Ne4 Nf5 16. Ba2 Re8 17. Bb1 g6 18. g4 Nh4 19. Nxh4 Bxh4 20. Qe3 {0-1 (44) Short,N (2655)-Vallejo Pons,F (2700) Madrid 2016}) 13. Rad1 {[%emt 0:03:29]} Nd5 {[%emt 0:25:04]} 14. Bc1 {[%emt 0:06:34]} Nxc3 {[%emt 0:02:48]} 15. bxc3 {[%emt 0:00:16]} Na5 $146 {[%emt 0:01:57]} ({Predecessor:} 15... Bf6 16. Ba2 Ne7 17. Ng5 Ng6 18. Ne4 Be7 19. c4 Ba6 20. Bb2 Qc7 {½-½ (58) Klebel,M (2435)-Bachmayr,P (2280) Germany 1992}) 16. Ba2 {[%emt 0:01:00]} Bd5 {[%emt 0:03:52]} 17. Bb1 {[%emt 0:01:37]} f5 {[%emt 0:04:32]} 18. Ne5 {[%emt 0:11:06]} Nc4 {[%emt 0:03:59]} 19. Nxc4 {[%emt 0:04:17]} Bxc4 {[%emt 0:01:10]} 20. Qh3 {[%emt 0:00:36]} Bd5 {[%emt 0:14:22]} 21. Re3 {[%emt 0:06:45]} Bg5 {[%emt 0:01:45]} 22. Re5 {[%emt 0:06:47]} Bxc1 {[%emt 0:01:09]} 23. Rxc1 {[%emt 0:00:07]} Qg5 {[%emt 0:01:48]} 24. Re3 {[%emt 0:02:19]} Rf6 {[%emt 0:03:55]} 25. Ree1 {[%emt 0:04:03]} Rg6 {[%emt 0:02:06]} 26. g3 {[%emt 0:03:12]} Rh6 {[%emt 0:00:26]} 27. f4 {[%emt 0:03:18]} Qxf4 {[%emt 0:01:42]} 28. Qf1 {[%emt 0:01:19]} Qxf1+ {[%emt 0:04:13]} 29. Rxf1 {[%emt 0:00:09]} Rf6 {[%emt 0:01:23]} 30. Bd3 {[%emt 0:00:55]} Rf7 {[%emt 0:01:07]} 31. Ba6 {[%emt 0:00:52]} Rd8 $17 {[%emt 0:01:03]} 32. Kf2 {[%emt 0:03:25]} Rc7 {[%emt 0:00:47]} 33. Ke3 {[%emt 0:01:32]} Bc4 {[%emt 0:00:55]} 34. Bxc4 {[%emt 0:00:09]} Rxc4 {[%emt 0:00:01]} 35. Kd3 {[%emt 0:00:38]} b5 {[%emt 0:01:28]} 36. Rb1 {[%emt 0:00:48]} Rdc8 {[%emt 0:00:27]} 37. Rfc1 {[%emt 0:00:56]} a6 {[%emt 0:00:19]} 38. Rb4 {[%emt 0:00:48]} Rxb4 {[%emt 0:00:07]} 39. axb4 {[%emt 0:00:05]} g5 {[%emt 0:00:46]} 40. Re1 {[%emt 0:11:44]} Kf7 {[%emt 0:00:21]} 41. Re5 {[%emt 1:10:05]} Kf6 {[%emt 0:05:33]} 42. Kd2 {[%emt 0:00:00]} g4 {[%emt 0:10:31]} 43. Kd3 {[%emt 0:00:00]} h5 {[%emt 0:02:07]} 44. Re2 {[%emt 0:00:00]} h4 {[%emt 0:07:10]} 45. Ra2 {[%emt 0:00:00]} hxg3 {[%emt 0:08:42]} 46. hxg3 {[%emt 0:00:00]} Rc6 {[%emt 0:00:23]} 47. Rh2 {[%emt 0:00:00]} f4 {[%emt 0:00:54]} 48. Rf2 {[%emt 0:00:00]} f3 {[%emt 0:01:36]} 49. Rh2 {[%emt 0:00:00]} Rc7 {[%emt 0:04:12]} 50. Rh8 {[%emt 0:00:00]} Rf7 {[%emt 0:03:09]} 51. Rh2 {[%emt 0:00:00]} Kg6 {[%emt 0:02:09]} 52. Ke3 {[%emt 0:00:00]} Rh7 {[%emt 0:01:00]} 53. Ra2 {[%emt 0:00:00]} Kf5 {[%emt 0:03:28]} 54. c4 {[%emt 0:00:00]} bxc4 {[%emt 0:00:23]} 55. Ra5+ {[%emt 0:00:00]} Kf6 {[%emt 0:00:08]} 56. Rxa6 {[%emt 0:00:00]} Rc7 {[%emt 0:01:19]} 57. d5 {[%emt 0:00:00]} c3 {[%emt 0:00:43]} 58. Rxe6+ {[%emt 0:00:00]} Kf5 {[%emt 0:00:22]} 59. d6 {[%emt 0:00:00]} Kxe6 {[%emt 0:00:15]} 0-1

[Event "Fagernes GM-A 2019"]
[Site "Fagernes"]
[Date "2019.04.16"]
[Round "3.14"]
[White "Lindbol, Aleksander"]
[Black "Sisatto, Olli"]
[Result "1/2-1/2"]
[ECO "E91"]
[WhiteElo "2139"]
[BlackElo "2276"]
[Annotator "NA"]
[PlyCount "42"]
[EventDate "2019.04.14"]
[EventType "tourn"]
[EventCountry "NOR"]
[SourceTitle "playchess.com"]
[Source "ChessBase"]
[SourceQuality "1"]
[TimeControl "40/7200:3600"]

{[%evp 8,35,52,17,41,16,29,19,26,22,35,33,46,47,62,45,58,52,83,89,86,92,77,87,105,108,100,59,53,50]} 1. e4 {[%emt 0:00:09]} Nf6 {[%emt 0:00:36]} 2. e5 {[%emt 0:02:48]} Nd5 {[%emt 0:00:09]} 3. d4 {[%emt 0:13:20]} d6 {[%emt 0:01:15]} 4. exd6 {[%emt 0:00:40]} cxd6 {[%emt 0:01:36]} 5. Nf3 {[%emt 0:00:33]} g6 {[%emt 0:00:35]} 6. c4 {[%emt 0:02:07]} Nf6 {[%emt 0:00:28] LiveBook: 4 Games} 7. Nc3 {[%emt 0:01:49]} Bg7 {[%emt 0:00:40]} 8. Be2 {[%emt 0:02:05]} O-O {[%emt 0:00:20]} 9. d5 {[%emt 0:03:48]} Na6 {[%emt 0:13:30] E91: King's Indian: Classical: 6 Be2, unusual replies including 6...c5 and 6...Bg4} (9... Bg4 10. Bd2 Nbd7 11. O-O Rc8 12. b3 Nc5 13. h3 Bd7 14. Be3 a6 15. Bd4 e5 16. dxe6 Nxe6 17. Be3 {½-½ (28) Dziuba,M (2584)-Heberla,B (2558) Czech Republic 2018}) 10. O-O {[%emt 0:25:00]} Nc5 {[%emt 0:09:14]} 11. Be3 {[%emt 0:05:56]} Bd7 {[%emt 0:07:45]} 12. Nd4 $146 {[%emt 0:21:36]} ({Predecessor:} 12. Rc1 Ng4 13. Bd4 e6 14. Bxg7 Kxg7 15. dxe6 Bxe6 16. Qd4+ Nf6 17. Rfd1 {1-0 (29) Bykov,A (2016)-Semenova,A (1843) Voronezh 2011}) 12... Nfe4 {[%emt 0:09:00]} 13. Nxe4 {[%emt 0:01:57]} Nxe4 {[%emt 0:00:17]} 14. Bf3 {[%emt 0:05:14]} Nc5 {[%emt 0:03:14]} 15. b4 {[%emt 0:02:02]} Na4 {[%emt 0:02:40]} 16. Rc1 {[%emt 0:02:22]} a5 {[%emt 0:04:48]} 17. b5 {[%emt 0:00:46]} Nc5 {[%emt 0:02:50]} 18. Nb3 $14 {[%emt 0:03:44]} Na4 {[%emt 0:08:36]} 19. Nd4 {[%emt 0:00:46]} Nc5 {[%emt 0:00:11]} 20. Nb3 {[%emt 0:00:42]} Na4 {[%emt 0:00:28]} 21. Nd4 {[%emt 0:00:12]} Nc5 {[%emt 0:00:22]} 1/2-1/2

[Event "Fagernes GM-A 2019"]
[Site "Fagernes"]
[Date "2019.04.16"]
[Round "3.16"]
[White "Dahl, Trygve"]
[Black "Isha Sharma"]
[Result "0-1"]
[ECO "B40"]
[WhiteElo "2275"]
[BlackElo "1989"]
[Annotator "NA"]
[PlyCount "88"]
[EventDate "2019.04.14"]
[EventType "tourn"]
[EventCountry "NOR"]
[SourceTitle "playchess.com"]
[Source "ChessBase"]
[SourceQuality "1"]
[TimeControl "40/7200:3600"]

1. e4 {[%emt 0:00:02]} c5 {[%emt 0:01:19]} 2. Nf3 {[%emt 0:00:07]} e6 {[%emt 0:00:07]} 3. g3 {[%emt 0:01:02]} Nc6 {[%emt 0:00:45]} 4. Bg2 {[%emt 0:00:15]} Nf6 {[%emt 0:00:11]} 5. d3 {[%emt 0:01:06]} g6 {[%emt 0:03:50]} (5... d5 6. Nbd2 Be7 7. O-O O-O 8. Re1 b5 9. a4 b4 10. e5 Nd7 11. Nf1 b3 12. c4 dxc4 13. dxc4 Rb8 14. Bd2 Qc7 15. Bc3 Rd8 16. N1d2 Bb7 17. Qe2 Ba8 {1-0 (57) Malakhov,V (2654)-Salgado Lopez,I (2624) Germany 2019}) 6. O-O {[%emt 0:07:46] B40: Sicilian: 2...e6, Unusual lines} Bg7 {[%emt 0:00:36]} 7. Re1 {[%emt 0:01:28]} d6 {[%emt 0:03:18]} 8. c3 {[%emt 0:03:07]} e5 {[%emt 0:00:29]} 9. h3 {[%emt 0:02:24]} O-O {[%emt 0:01:10]} 10. d4 {[%emt 0:01:47]} cxd4 {[%emt 0:08:47]} 11. cxd4 {[%emt 0:00:06]} Qb6 {[%emt 0:00:09]} 12. d5 {[%emt 0:04:00]} Ne7 {[%emt 0:00:50]} 13. Nc3 {[%emt 0:07:00]} Ne8 $146 {[%emt 0:04:21]} ({Predecessor:} 13... Bd7 14. Re2 {1-0 (41) Senlle Caride,M (2179)-Gandio Garcia,O Ourense 2007}) 14. Nd2 {[%emt 0:00:50]} f5 {[%emt 0:01:31]} 15. Nc4 {[%emt 0:11:19]} Qc5 {[%emt 0:04:55]} 16. b3 {[%emt 0:02:03]} b5 {[%emt 0:08:02]} 17. Be3 {[%emt 0:02:14]} Qb4 {[%emt 0:00:15]} 18. a3 {[%emt 0:00:04]} Qxc3 {[%emt 0:00:11]} 19. Rc1 {[%emt 0:00:05]} Qxc1 {[%emt 0:00:13]} 20. Qxc1 {[%emt 0:03:06]} bxc4 {[%emt 0:00:06]} 21. bxc4 {[%emt 0:00:03]} fxe4 {[%emt 0:04:03]} 22. c5 {[%emt 0:04:52]} Nxd5 {[%emt 0:02:26]} 23. cxd6 {[%emt 0:02:36]} Nxe3 {[%emt 0:04:49]} 24. Qc6 {[%emt 0:18:52]} Nxg2 {[%emt 0:11:17]} 25. Rb1 {[%emt 0:01:28]} Bxh3 {[%emt 0:31:22]} 26. Qxa8 {[%emt 0:01:29]} e3 {[%emt 0:00:24]} 27. fxe3 {[%emt 0:07:30]} Nxd6 {[%emt 0:02:52]} 28. Qxa7 {[%emt 0:09:36]} Bh6 {[%emt 0:01:44]} 29. Kh2 {[%emt 0:00:22]} Bf5 {[%emt 0:00:19]} 30. Rb8 {[%emt 0:02:06]} Nxe3 {[%emt 0:03:12]} 31. Rxf8+ {[%emt 0:00:28]} Kxf8 $19 {[%emt 0:00:08]} 32. Qb8+ {[%emt 0:01:28]} Ke7 {[%emt 0:00:06]} 33. Qc7+ {[%emt 0:00:32]} Bd7 {[%emt 0:01:30]} 34. a4 {[%emt 0:00:44]} Nd5 {[%emt 0:00:42]} 35. Qa5 {[%emt 0:03:56]} Ke6 {[%emt 0:00:22]} 36. Qa8 {[%emt 0:00:48]} Ne7 {[%emt 0:01:10]} 37. a5 {[%emt 0:01:33]} Be3 {[%emt 0:00:36]} 38. Qb8 {[%emt 0:00:37]} Nb5 {[%emt 0:01:04]} 39. a6 {[%emt 0:01:47]} h5 {[%emt 0:00:33]} 40. Qd8 {[%emt 0:01:31]} Ba7 {[%emt 0:00:48]} 41. Qa5 {[%emt 1:00:59]} e4 {[%emt 1:00:54]} 42. Qa2+ {[%emt 0:01:19]} Nd5 {[%emt 0:00:08]} 43. Qc2 {[%emt 0:00:10]} Ke5 {[%emt 0:00:29]} 44. Qb2+ {[%emt 0:01:04]} Bd4 {[%emt 0:00:08]} 0-1

[Event "Fagernes GM-A 2019"]
[Site "Fagernes"]
[Date "2019.04.16"]
[Round "3.18"]
[White "Holleland, Sigve"]
[Black "Nordquelle, Daniel"]
[Result "1-0"]
[ECO "A80"]
[WhiteElo "2024"]
[BlackElo "2264"]
[Annotator "NA"]
[PlyCount "87"]
[EventDate "2019.04.14"]
[EventType "tourn"]
[EventCountry "NOR"]
[SourceTitle "playchess.com"]
[Source "ChessBase"]
[SourceQuality "1"]
[TimeControl "40/7200:3600"]

1. d4 {[%emt 0:00:02]} f5 {[%emt 0:02:31]} 2. Bg5 {[%emt 0:02:07]} d5 {[%emt 0:03:45]} 3. e3 {[%emt 0:02:00]} Nd7 {[%emt 0:00:22]} 4. Bd3 {[%emt 0:00:26]} Ndf6 {[%emt 0:12:26]} 5. f3 {[%emt 0:07:22]} g6 {[%emt 0:08:22]} 6. c4 {[%emt 0:07:12]} c6 {[%emt 0:01:38]} 7. Nc3 {[%emt 0:06:28]} Bg7 {[%emt 0:00:49]} 8. Rc1 {[%emt 0:01:30]} a6 {[%emt 0:01:52]} 9. Nge2 {[%emt 0:01:49]} Nh6 {[%emt 0:04:45]} 10. cxd5 {[%emt 0:08:59]} cxd5 {[%emt 0:00:33]} 11. Nf4 {[%emt 0:05:49]} e6 {[%emt 0:00:56]} 12. Qa4+ {[%emt 0:00:21]} Kf8 {[%emt 0:01:30]} 13. Nb5 {[%emt 0:15:18]} Bd7 {[%emt 0:11:50]} 14. Qb4+ {[%emt 0:10:13]} Qe7 {[%emt 0:00:17]} 15. Nd6 {[%emt 0:03:36]} Rb8 {[%emt 0:16:09]} 16. Rc7 {[%emt 0:07:58]} Kg8 {[%emt 0:45:27]} 17. Qa3 {[%emt 0:03:53]} Nf7 {[%emt 0:01:20]} 18. Bxf6 {[%emt 0:18:22]} Bxf6 {[%emt 0:00:01]} 19. Rxb7 {[%emt 0:00:26]} Kg7 {[%emt 0:00:54]} 20. Nxf5+ {[%emt 0:02:41]} gxf5 {[%emt 0:00:48]} 21. Qxe7 {[%emt 0:01:04]} Bxe7 {[%emt 0:00:02]} 22. Rxd7 {[%emt 0:00:07]} Bb4+ {[%emt 0:00:12]} 23. Ke2 {[%emt 0:00:32]} Rhe8 {[%emt 0:00:15]} 24. Rc1 {[%emt 0:01:15]} Bd6 {[%emt 0:03:16]} 25. b3 {[%emt 0:01:00]} Bxf4 {[%emt 0:00:00]} 26. exf4 {[%emt 0:00:06]} Rec8 {[%emt 0:00:00]} 27. Rxc8 {[%emt 0:01:49]} Rxc8 {[%emt 0:00:00]} 28. Ra7 {[%emt 0:00:11]} Kf6 {[%emt 0:00:00]} 29. Rxa6 {[%emt 0:00:22]} Nd8 {[%emt 0:00:00]} 30. g4 {[%emt 0:01:52]} Nc6 {[%emt 0:00:00]} 31. Ke3 {[%emt 0:00:41]} Nb4 {[%emt 0:00:00]} 32. Rxe6+ {[%emt 0:00:34]} Kf7 {[%emt 0:00:00]} 33. Bxf5 {[%emt 0:00:29]} Rc3+ {[%emt 0:00:00]} 34. Kd2 {[%emt 0:01:36]} Rxf3 {[%emt 0:00:00]} 35. a3 {[%emt 0:00:10]} Na2 {[%emt 0:00:00]} 36. Re2 {[%emt 0:00:29]} Rxb3 {[%emt 0:00:00]} 37. Be6+ {[%emt 0:00:07]} Kf6 {[%emt 0:00:00]} 38. Bxd5 {[%emt 0:00:03]} Rb2+ {[%emt 0:00:00]} 39. Ke3 {[%emt 0:00:16]} Rxe2+ {[%emt 0:00:00]} 40. Kxe2 {[%emt 0:00:01]} Nc3+ {[%emt 0:00:00]} 41. Kf3 {[%emt 1:00:20]} Nxd5 {[%emt 0:59:53]} 42. a4 {[%emt 0:00:03]} Nb4 {[%emt 0:00:00]} 43. Ke4 {[%emt 0:00:00]} Ke6 {[%emt 0:00:00]} 44. g5 {[%emt 0:00:00]} 1-0

[Event "Fagernes GM-A 2019"]
[Site "Fagernes"]
[Date "2019.04.16"]
[Round "3.20"]
[White "Lillevold, Frode"]
[Black "Fuglestein, Sander"]
[Result "0-1"]
[ECO "D59"]
[WhiteElo "2076"]
[BlackElo "2000"]
[Annotator "NA"]
[PlyCount "60"]
[EventDate "2019.04.14"]
[EventType "tourn"]
[EventCountry "NOR"]
[SourceTitle "playchess.com"]
[Source "ChessBase"]
[SourceQuality "1"]
[TimeControl "40/7200:3600"]

1. d4 {[%emt 0:00:01]} d5 {[%emt 0:00:10]} 2. c4 {[%emt 0:00:01]} e6 {[%emt 0:00:07]} 3. Nf3 {[%emt 0:00:25]} Nf6 {[%emt 0:00:07]} 4. Bg5 {[%emt 0:00:32]} Be7 {[%emt 0:00:57]} 5. Nc3 {[%emt 0:00:48]} O-O {[%emt 0:00:23]} 6. e3 {[%emt 0:00:07]} Nbd7 {[%emt 0:00:14]} 7. Bd3 {[%emt 0:02:31]} h6 {[%emt 0:00:20]} 8. Bh4 {[%emt 0:00:22]} b6 {[%emt 0:00:14]} 9. cxd5 {[%emt 0:03:06]} Nxd5 {[%emt 0:00:15]} 10. Bxe7 {[%emt 0:03:27]} Qxe7 {[%emt 0:00:08]} 11. Nxd5 {[%emt 0:01:24]} exd5 {[%emt 0:00:05]} 12. O-O {[%emt 0:00:48]} Bb7 {[%emt 0:03:02]} 13. Rc1 {[%emt 0:08:31]} c5 {[%emt 0:05:46]} 14. Qa4 {[%emt 0:05:11]} Rfd8 {[%emt 0:25:32]} 15. Qa3 {[%emt 0:04:32]} Qe6 {[%emt 0:08:10]} 16. dxc5 {[%emt 0:15:20]} Nxc5 {[%emt 0:06:35]} 17. Nd4 {[%emt 1:12:54]} Qf6 {[%emt 0:02:46]} 18. b4 {[%emt 0:00:00]} Ne6 {[%emt 0:14:38]} 19. Nxe6 {[%emt 0:00:00]} Qxe6 {[%emt 0:00:42]} 20. Rc7 {[%emt 0:00:00]} Rd7 {[%emt 0:01:32]} 21. Rfc1 {[%emt 0:00:00]} d4 {[%emt 0:08:36]} 22. exd4 {[%emt 0:00:00]} Qd5 {[%emt 0:05:45]} 23. Bf1 {[%emt 0:00:00]} Qxd4 {[%emt 0:00:53]} 24. Qa4 {[%emt 0:00:00]} Rxc7 {[%emt 0:07:46]} 25. Rxc7 {[%emt 0:00:00]} Bd5 {[%emt 0:01:06]} 26. Rxa7 {[%emt 0:00:00]} Rc8 {[%emt 0:00:15]} 27. Qd7 {[%emt 0:00:00]} Rc1 {[%emt 0:04:27]} 28. Qb5 {[%emt 0:00:00]} Qe4 {[%emt 0:03:55]} 29. f3 {[%emt 0:00:00]} Qe3+ {[%emt 0:00:45]} 30. Kh1 {[%emt 0:00:00]} Qf2 {[%emt 0:00:16]} 0-1

[Event "Fagernes GM-A 2019"]
[Site "Fagernes"]
[Date "2019.04.16"]
[Round "3.21"]
[White "Gronnestad, Anita"]
[Black "Machlik, Monika"]
[Result "0-1"]
[ECO "A13"]
[WhiteElo "1954"]
[BlackElo "2059"]
[Annotator "NA"]
[PlyCount "94"]
[EventDate "2019.04.14"]
[EventType "tourn"]
[EventCountry "NOR"]
[SourceTitle "playchess.com"]
[Source "ChessBase"]
[SourceQuality "1"]
[TimeControl "40/7200:3600"]

1. Nf3 {[%emt 0:00:06]} Nf6 {[%emt 0:00:19]} 2. c4 {[%emt 0:00:10]} e6 {[%emt 0:01:32]} 3. g3 {[%emt 0:00:28]} a6 {[%emt 0:03:38]} 4. Bg2 {[%emt 0:00:28]} b5 {[%emt 0:00:19]} 5. b3 {[%emt 0:01:46]} c5 {[%emt 0:01:36]} 6. d4 {[%emt 0:02:31]} Bb7 {[%emt 0:02:33]} 7. d5 {[%emt 0:01:25]} Nxd5 {[%emt 0:39:12]} 8. cxd5 {[%emt 0:00:41]} Qf6 {[%emt 0:00:14]} 9. Nc3 {[%emt 0:36:12]} Qxc3+ {[%emt 0:00:35]} 10. Bd2 {[%emt 0:00:07]} Qf6 {[%emt 0:05:18]} 11. dxe6 {[%emt 0:01:12]} fxe6 {[%emt 0:04:09]} 12. O-O {[%emt 0:01:59]} d5 {[%emt 0:14:18]} 13. e4 {[%emt 0:03:55]} d4 {[%emt 0:02:02]} 14. Ng5 {[%emt 0:03:18]} Ra7 {[%emt 0:11:22]} 15. Bh3 {[%emt 0:08:51]} Bc8 {[%emt 0:01:41]} 16. e5 {[%emt 0:02:18]} Qe7 {[%emt 0:06:49]} 17. Ne4 {[%emt 0:08:17]} Qf7 {[%emt 0:02:09]} 18. Rc1 {[%emt 0:04:08]} Be7 {[%emt 0:01:42]} 19. Bg5 {[%emt 0:09:17]} O-O {[%emt 0:03:12]} 20. Bxe7 {[%emt 0:00:40]} Qxe7 {[%emt 0:00:36]} 21. Nxc5 {[%emt 0:03:32]} Nc6 {[%emt 0:00:25]} 22. f4 {[%emt 0:00:22]} Rc7 {[%emt 0:01:46]} 23. Qg4 {[%emt 0:03:02]} Nxe5 {[%emt 0:01:57]} 24. fxe5 {[%emt 0:00:27]} Rxf1+ {[%emt 0:01:43]} 25. Kxf1 {[%emt 0:01:07]} Rxc5 {[%emt 0:00:10]} 26. Qf4 {[%emt 0:04:58]} Rxc1+ {[%emt 0:01:34]} 27. Qxc1 {[%emt 0:00:02]} Bb7 {[%emt 0:00:48]} 28. Ke2 {[%emt 0:01:53]} h6 {[%emt 0:02:10]} 29. Qf4 {[%emt 0:02:23]} Bd5 {[%emt 0:01:44]} 30. Qxd4 {[%emt 0:00:23]} Qc7 {[%emt 0:00:21]} 31. Kd2 {[%emt 0:00:49]} Qa5+ {[%emt 0:00:23]} 32. b4 {[%emt 0:03:55]} Qxa2+ {[%emt 0:00:02]} 33. Ke3 {[%emt 0:00:54]} Qxh2 {[%emt 0:01:42]} 34. Qh4 {[%emt 0:00:38]} Qg1+ {[%emt 0:00:28]} 35. Kd2 {[%emt 0:00:58]} Qf2+ {[%emt 0:00:05]} 36. Kc3 {[%emt 0:02:24]} Qe3+ {[%emt 0:00:03]} 37. Kc2 {[%emt 0:00:35]} Qe2+ {[%emt 0:00:36]} 38. Kc3 {[%emt 0:00:19]} Qxe5+ {[%emt 0:00:11]} 39. Kd2 {[%emt 0:00:33]} Qb2+ {[%emt 0:00:08]} 40. Ke3 {[%emt 0:00:35]} Qc3+ {[%emt 0:00:03]} 41. Kf2 {[%emt 1:00:32]} Qd2+ {[%emt 1:00:06]} 42. Kg1 {[%emt 0:01:17]} Qe3+ {[%emt 0:00:09]} 43. Kf1 {[%emt 0:00:20]} Bc4+ {[%emt 0:00:00]} 44. Kg2 {[%emt 0:00:00]} Qe2+ {[%emt 0:00:00]} 45. Kg1 {[%emt 0:00:00]} Qe1+ {[%emt 0:00:00]} 46. Kg2 {[%emt 0:00:00]} Bd5+ {[%emt 0:00:00]} 47. Kh2 {[%emt 0:00:00]} Qh1# {[%emt 0:00:00]} 0-1

[Event "Fagernes GM-A 2019"]
[Site "Fagernes"]
[Date "2019.04.18"]
[Round "4"]
[White "Demchenko, Anton"]
[Black "Postny, Evgeny"]
[Result "1-0"]
[ECO "B13"]
[WhiteElo "2661"]
[BlackElo "2612"]
[Annotator "RC"]
[PlyCount "73"]
[EventDate "2019.04.14"]
[EventType "tourn"]
[EventCountry "NOR"]
[SourceTitle "playchess.com"]
[Source "ChessBase"]
[SourceQuality "1"]
[TimeControl "40/7200:3600"]

1. e4 {[%emt 0:00:02]} c6 {[%emt 0:02:39]} 2. d4 {[%emt 0:00:40]} d5 {[%emt 0:00:05]} 3. exd5 {[%emt 0:00:32]} cxd5 {[%emt 0:00:06]} 4. Bd3 {[%emt 0:00:05]} Nc6 {[%emt 0:00:16]} 5. c3 {[%emt 0:00:06]} Nf6 {[%emt 0:00:06]} 6. Bf4 {[%emt 0:00:17]} Bg4 {[%emt 0:00:17]} 7. Qb3 {[%emt 0:00:06]} e5 {[%emt 0:00:17]} 8. h3 {[%emt 0:00:57]} Na5 {[%emt 0:00:06]} 9. Qc2 {[%emt 0:00:07]} exf4 {[%emt 0:00:08]} 10. hxg4 {[%emt 0:00:04]} Nxg4 {[%emt 0:00:42]} 11. Qe2+ {[%emt 0:00:08]} Qe7 {[%emt 0:00:05]} 12. Nh3 {[%emt 0:00:09]} f3 {[%emt 0:00:42]} 13. gxf3 {[%emt 0:00:07]} Qxe2+ {[%emt 0:01:02]} 14. Kxe2 {[%emt 0:00:13]} Nf6 {[%emt 0:00:07]} 15. Nd2 {[%emt 0:00:39]} Bd6 {[%emt 0:04:06]} 16. f4 {[%emt 0:03:32]} Nh5 {[%emt 0:10:54]} 17. Kf3 {[%emt 0:01:38]} g6 {[%emt 0:04:29]} 18. f5 {[%emt 0:04:05]} O-O-O {[%emt 0:10:13]} 19. Nf1 {[%emt 0:00:57]} Nc6 {[%emt 0:17:31]} 20. Ne3 {[%emt 0:01:28]} Ne7 {[%emt 0:01:00]} 21. Ng5 {[%emt 0:45:56]} Rdf8 {[%emt 0:02:04]} 22. Rxh5 {[%emt 0:00:52]} gxh5 {[%emt 0:00:10]} 23. f6 {[%emt 0:00:03]} Ng6 {[%emt 0:00:41]} 24. Nxd5 {[%emt 0:00:16]} h6 {[%emt 0:06:52]} 25. Ne4 {[%emt 0:00:18]} Rd8 {[%emt 0:00:09]} 26. Rh1 {[%emt 0:03:16]} h4 {[%emt 0:05:44]} 27. Bc4 {[%emt 0:06:38]} Bb8 {[%emt 0:27:48]} 28. Ne3 {[%emt 0:08:58]} Rdf8 {[%emt 0:01:08]} 29. Nf5 {[%emt 0:02:34]} Kd7 {[%emt 0:00:17]} 30. b4 {[%emt 0:11:44]} b6 {[%emt 0:03:45]} 31. Bb5+ {[%emt 0:01:11]} Kd8 {[%emt 0:03:36]} 32. c4 {[%emt 0:01:31]} h5 {[%emt 0:00:27]} 33. c5 {[%emt 0:02:46]} h3 {[%emt 0:00:15]} 34. Ned6 {[%emt 0:03:44]} Bxd6 {[%emt 0:06:04]} 35. cxd6 {[%emt 0:04:44]} Kc8 {[%emt 0:00:54]} 36. Ne7+ {[%emt 0:02:47]} Kb7 {[%emt 0:00:35]} 37. Rc1 {[%emt 0:00:58]} 1-0